[Event "Titled Tuesday Blitz May 23 Early 2023"]
[White "Pacan-Milej, Kosma"]
[Black "Turzo, Attila"]
[WhiteFideId "21800537"]
[BlackFideId "704954"]
[WhiteElo "2302"]
[BlackElo "2484"]
[Result "0-1"]
[Round "04"]
[TimeControl "180+2"]
[Date "2023.05.23"]
[WhiteClock "0:00:00"]
[BlackClock "0:00:16"]

1. d4 {[%clk 0:03:00]}  Nf6 {[%clk 0:02:59]} 2. c4 {[%clk 0:03:01]}  g6 {[%clk 0:03:00]} 3. Nc3 {[%clk 0:03:01]}  Bg7 {[%clk 0:03:00]} 4. e4 {[%clk 0:03:02]}  d6 {[%clk 0:03:01]} 5. h3 {[%clk 0:03:02]}  O-O {[%clk 0:02:59]} 6. Be3 {[%clk 0:03:03]}  c5 {[%clk 0:02:48]} 7. d5 {[%clk 0:03:03]}  b5 {[%clk 0:02:44]} 8. cxb5 {[%clk 0:03:04]}  a6 {[%clk 0:02:44]} 9. Nf3 {[%clk 0:03:02]}  axb5 {[%clk 0:02:42]} 10. Bxb5 {[%clk 0:03:03]}  Nxe4 {[%clk 0:02:30]} 11. Nxe4 {[%clk 0:02:06]}  Qa5+ {[%clk 0:02:29]} 12. Nc3 {[%clk 0:02:06]}  Bxc3+ {[%clk 0:02:29]} 13. bxc3 {[%clk 0:02:07]}  Qxb5 {[%clk 0:02:30]} 14. a4 {[%clk 0:02:00]}  Qc4 {[%clk 0:02:26]} 15. Nd2 {[%clk 0:01:40]}  Qxd5 {[%clk 0:02:08]} 16. O-O {[%clk 0:01:39]}  Nd7 {[%clk 0:01:59]} 17. Bh6 {[%clk 0:01:36]}  Re8 {[%clk 0:01:59]} 18. c4 {[%clk 0:01:25]}  Qd3 {[%clk 0:01:52]} 19. Re1 {[%clk 0:01:17]}  Bb7 {[%clk 0:01:52]} 20. Rb1 {[%clk 0:01:13]}  Bc6 {[%clk 0:01:51]} 21. Rb3 {[%clk 0:01:03]}  Qd4 {[%clk 0:01:41]} 22. Rbe3 {[%clk 0:00:55]}  Qh4 {[%clk 0:01:15]} 23. Nf3 {[%clk 0:00:20]}  Qxh6 {[%clk 0:01:09]} 24. Rxe7 {[%clk 0:00:20]}  Ne5 {[%clk 0:00:38]} 25. Nxe5 {[%clk 0:00:15]}  dxe5 {[%clk 0:00:27]} 26. R1xe5 {[%clk 0:00:13]}  Rxe7 {[%clk 0:00:24]} 27. Rxe7 {[%clk 0:00:14]}  Bxa4 {[%clk 0:00:22]} 28. Qd5 {[%clk 0:00:10]}  Rf8 {[%clk 0:00:18]} 29. Qxc5 {[%clk 0:00:10]}  Qc1+ {[%clk 0:00:18]} 30. Kh2 {[%clk 0:00:09]}  Qf4+ {[%clk 0:00:18]} 31. g3 {[%clk 0:00:08]}  Qf3 {[%clk 0:00:16]} 32. Qd4 {[%clk 0:00:00]}  Bc6 {[%clk 0:00:16]} 0-1


[Site "https://www.chess.com"]

[Event "Titled Tuesday Blitz May 23 Early 2023"]
[White "Vlassov, Nikolai"]
[Black "Toropov, Pavel"]
[WhiteFideId "4103360"]
[BlackFideId "24129178"]
[WhiteElo "2324"]
[BlackElo "2182"]
[Result "1-0"]
[Round "04"]
[TimeControl "180+2"]
[Date "2023.05.23"]
[WhiteClock "0:01:17"]
[BlackClock "0:00:19"]

1. e4 {[%clk 0:03:00]}  e6 {[%clk 0:02:23]} 2. c4 {[%clk 0:02:59]}  d5 {[%clk 0:02:24]} 3. cxd5 {[%clk 0:02:59]}  exd5 {[%clk 0:02:24]} 4. Qb3 {[%clk 0:02:59]}  Nf6 {[%clk 0:02:18]} 5. e5 {[%clk 0:02:59]}  Ne4 {[%clk 0:02:17]} 6. d4 {[%clk 0:02:59]}  Be7 {[%clk 0:02:10]} 7. Bd3 {[%clk 0:02:48]}  O-O {[%clk 0:02:08]} 8. Ne2 {[%clk 0:02:46]}  c5 {[%clk 0:02:06]} 9. Bxe4 {[%clk 0:02:27]}  dxe4 {[%clk 0:02:07]} 10. d5 {[%clk 0:02:27]}  Re8 {[%clk 0:02:02]} 11. Bf4 {[%clk 0:02:19]}  Bg5 {[%clk 0:01:58]} 12. Bg3 {[%clk 0:02:19]}  Bh4 {[%clk 0:01:55]} 13. e6 {[%clk 0:01:59]}  fxe6 {[%clk 0:01:30]} 14. Nbc3 {[%clk 0:01:45]}  exd5 {[%clk 0:01:15]} 15. Nxd5 {[%clk 0:01:40]}  Be6 {[%clk 0:01:03]} 16. O-O-O {[%clk 0:01:39]}  Bxg3 {[%clk 0:00:54]} 17. hxg3 {[%clk 0:01:38]}  Nc6 {[%clk 0:00:50]} 18. Nef4 {[%clk 0:01:32]}  Nd4 {[%clk 0:00:47]} 19. Rxd4 {[%clk 0:01:26]}  cxd4 {[%clk 0:00:45]} 20. Nxe6 {[%clk 0:01:26]}  Rxe6 {[%clk 0:00:45]} 21. Nf4 {[%clk 0:01:26]}  Qc8+ {[%clk 0:00:32]} 22. Kb1 {[%clk 0:01:25]}  Kf7 {[%clk 0:00:19]} 23. Nxe6 {[%clk 0:01:17]} 1-0


[Site "https://www.chess.com"]

[Event "Titled Tuesday Blitz May 23 Early 2023"]
[White "Ehlvest, Jaan"]
[Black "Shukhman, Anna"]
[WhiteFideId "4500016"]
[BlackFideId "54180058"]
[WhiteElo "2442"]
[BlackElo "2235"]
[Result "1-0"]
[Round "04"]
[TimeControl "180+2"]
[Date "2023.05.23"]
[WhiteClock "0:00:46"]
[BlackClock "0:00:12"]

1. e4 {[%clk 0:02:54]}  c5 {[%clk 0:02:59]} 2. Nf3 {[%clk 0:02:53]}  a6 {[%clk 0:02:57]} 3. g3 {[%clk 0:02:50]}  b5 {[%clk 0:02:57]} 4. d4 {[%clk 0:02:44]}  Bb7 {[%clk 0:02:58]} 5. d5 {[%clk 0:02:43]}  e6 {[%clk 0:02:55]} 6. c4 {[%clk 0:02:33]}  bxc4 {[%clk 0:02:54]} 7. Nc3 {[%clk 0:02:32]}  d6 {[%clk 0:02:54]} 8. dxe6 {[%clk 0:02:30]}  fxe6 {[%clk 0:02:54]} 9. Bxc4 {[%clk 0:02:30]}  Qf6 {[%clk 0:02:46]} 10. Ng5 {[%clk 0:02:24]}  Nd7 {[%clk 0:02:11]} 11. Nxe6 {[%clk 0:02:06]}  Ne5 {[%clk 0:02:11]} 12. Bd5 {[%clk 0:02:06]}  Bxd5 {[%clk 0:01:49]} 13. Nxd5 {[%clk 0:02:05]}  Qf3 {[%clk 0:01:42]} 14. Qxf3 {[%clk 0:02:01]}  Nxf3+ {[%clk 0:01:43]} 15. Ke2 {[%clk 0:02:01]}  Kd7 {[%clk 0:01:43]} 16. Nb6+ {[%clk 0:01:30]}  Kxe6 {[%clk 0:01:42]} 17. Nxa8 {[%clk 0:01:30]}  Nd4+ {[%clk 0:01:42]} 18. Kd3 {[%clk 0:01:30]}  Nf6 {[%clk 0:01:39]} 19. Be3 {[%clk 0:01:28]}  Be7 {[%clk 0:01:21]} 20. Nc7+ {[%clk 0:01:27]}  Kd7 {[%clk 0:01:20]} 21. Bxd4 {[%clk 0:01:23]}  cxd4 {[%clk 0:01:19]} 22. Nd5 {[%clk 0:01:19]}  Ng4 {[%clk 0:01:16]} 23. Raf1 {[%clk 0:01:15]}  Rb8 {[%clk 0:01:06]} 24. b3 {[%clk 0:01:14]}  a5 {[%clk 0:00:59]} 25. f4 {[%clk 0:01:02]}  a4 {[%clk 0:00:56]} 26. b4 {[%clk 0:01:02]}  Ne3 {[%clk 0:00:45]} 27. Nxe3 {[%clk 0:01:00]}  dxe3 {[%clk 0:00:45]} 28. a3 {[%clk 0:00:57]}  d5 {[%clk 0:00:41]} 29. e5 {[%clk 0:00:56]}  Ke6 {[%clk 0:00:33]} 30. Kxe3 {[%clk 0:00:56]}  Bd8 {[%clk 0:00:26]} 31. Rc1 {[%clk 0:00:55]}  Bb6+ {[%clk 0:00:24]} 32. Kd3 {[%clk 0:00:56]}  Kf5 {[%clk 0:00:24]} 33. Rc6 {[%clk 0:00:51]}  Bf2 {[%clk 0:00:19]} 34. Ke2 {[%clk 0:00:46]}  Bd4 {[%clk 0:00:19]} 35. Kf3 {[%clk 0:00:46]}  h5 {[%clk 0:00:12]} 36. h3 {[%clk 0:00:46]} 1-0


[Site "https://www.chess.com"]

[Event "Titled Tuesday Blitz May 23 Early 2023"]
[White "Chor, Kevin"]
[Black "Garakov, Mikhael"]
[WhiteFideId "2090740"]
[BlackFideId "4169034"]
[WhiteElo "2647"]
[BlackElo "2347"]
[Result "0-1"]
[Round "04"]
[TimeControl "180+2"]
[Date "2023.05.23"]
[WhiteClock "0:00:09"]
[BlackClock "0:00:11"]

1. e4 {[%clk 0:03:00]}  c5 {[%clk 0:02:59]} 2. Nf3 {[%clk 0:03:00]}  e6 {[%clk 0:02:58]} 3. d4 {[%clk 0:03:00]}  cxd4 {[%clk 0:02:58]} 4. Nxd4 {[%clk 0:03:01]}  Nc6 {[%clk 0:02:59]} 5. Nc3 {[%clk 0:03:02]}  Qc7 {[%clk 0:02:59]} 6. Be3 {[%clk 0:03:00]}  a6 {[%clk 0:02:59]} 7. Qf3 {[%clk 0:02:57]}  d6 {[%clk 0:02:57]} 8. O-O-O {[%clk 0:02:54]}  Bd7 {[%clk 0:02:57]} 9. Kb1 {[%clk 0:02:50]}  Nf6 {[%clk 0:02:55]} 10. Rg1 {[%clk 0:02:44]}  b5 {[%clk 0:02:49]} 11. g4 {[%clk 0:02:39]}  b4 {[%clk 0:02:47]} 12. Nce2 {[%clk 0:02:37]}  Ne5 {[%clk 0:02:43]} 13. Qh3 {[%clk 0:02:37]}  Nxe4 {[%clk 0:01:56]} 14. Bg2 {[%clk 0:02:21]}  d5 {[%clk 0:01:56]} 15. f3 {[%clk 0:02:11]}  Nd6 {[%clk 0:01:43]} 16. f4 {[%clk 0:02:05]}  Nec4 {[%clk 0:01:42]} 17. Bc1 {[%clk 0:02:06]}  Rb8 {[%clk 0:01:01]} 18. f5 {[%clk 0:01:56]}  e5 {[%clk 0:01:00]} 19. Nb3 {[%clk 0:01:51]}  d4 {[%clk 0:00:58]} 20. Rge1 {[%clk 0:01:47]}  Be7 {[%clk 0:00:56]} 21. Qg3 {[%clk 0:01:20]}  Nb5 {[%clk 0:00:24]} 22. Nexd4 {[%clk 0:00:51]}  exd4 {[%clk 0:00:23]} 23. Qxc7 {[%clk 0:00:50]}  Nxc7 {[%clk 0:00:23]} 24. Rxd4 {[%clk 0:00:50]}  Nb6 {[%clk 0:00:19]} 25. Rde4 {[%clk 0:00:43]}  Nc8 {[%clk 0:00:20]} 26. Bg5 {[%clk 0:00:30]}  f6 {[%clk 0:00:19]} 27. Bf4 {[%clk 0:00:30]}  Kd8 {[%clk 0:00:19]} 28. Rxe7 {[%clk 0:00:20]}  Nxe7 {[%clk 0:00:19]} 29. Bxc7+ {[%clk 0:00:20]}  Kxc7 {[%clk 0:00:19]} 30. Rxe7 {[%clk 0:00:21]}  Rhe8 {[%clk 0:00:19]} 31. Rxg7 {[%clk 0:00:19]}  Re2 {[%clk 0:00:18]} 32. Nc1 {[%clk 0:00:19]}  Rxg2 {[%clk 0:00:18]} 33. Rxh7 {[%clk 0:00:19]}  Rxg4 {[%clk 0:00:17]} 34. b3 {[%clk 0:00:18]}  Rbg8 {[%clk 0:00:16]} 35. Nd3 {[%clk 0:00:18]}  R8g7 {[%clk 0:00:15]} 36. Rh6 {[%clk 0:00:18]}  Bxf5 {[%clk 0:00:15]} 37. Nc5 {[%clk 0:00:16]}  R7g6 {[%clk 0:00:10]} 38. Rh5 {[%clk 0:00:14]}  R4g5 {[%clk 0:00:11]} 39. Rh7+ {[%clk 0:00:13]}  Kb6 {[%clk 0:00:10]} 40. Na4+ {[%clk 0:00:12]}  Kc6 {[%clk 0:00:11]} 41. Kb2 {[%clk 0:00:09]}  Rg2 {[%clk 0:00:11]} 0-1


[Site "https://www.chess.com"]

[Event "Titled Tuesday Blitz May 23 Early 2023"]
[White "Mouhamad, Joachim"]
[Black "Ilkhomi, Jaloliddin"]
[WhiteFideId "656410"]
[BlackFideId "14700948"]
[WhiteElo "2125"]
[BlackElo "2045"]
[Result "0-1"]
[Round "04"]
[TimeControl "180+2"]
[Date "2023.05.23"]
[WhiteClock "0:00:26"]
[BlackClock "0:01:43"]

1. e4 {[%clk 0:03:00]}  e6 {[%clk 0:02:59]} 2. d4 {[%clk 0:03:00]}  d5 {[%clk 0:03:00]} 3. Nc3 {[%clk 0:03:00]}  Bb4 {[%clk 0:02:59]} 4. e5 {[%clk 0:03:00]}  c5 {[%clk 0:03:00]} 5. a3 {[%clk 0:03:01]}  Bxc3+ {[%clk 0:03:01]} 6. bxc3 {[%clk 0:03:01]}  Qa5 {[%clk 0:03:02]} 7. Bd2 {[%clk 0:03:01]}  Qa4 {[%clk 0:03:02]} 8. Qg4 {[%clk 0:02:58]}  Kf8 {[%clk 0:03:02]} 9. Qd1 {[%clk 0:02:57]}  Nc6 {[%clk 0:03:01]} 10. h4 {[%clk 0:02:52]}  Nge7 {[%clk 0:03:01]} 11. h5 {[%clk 0:02:52]}  h6 {[%clk 0:03:01]} 12. Rh4 {[%clk 0:02:50]}  Bd7 {[%clk 0:02:58]} 13. Nf3 {[%clk 0:02:49]}  c4 {[%clk 0:02:57]} 14. Rf4 {[%clk 0:02:44]}  Ke8 {[%clk 0:02:55]} 15. Nh4 {[%clk 0:02:40]}  Rf8 {[%clk 0:02:51]} 16. Ra2 {[%clk 0:02:40]}  b6 {[%clk 0:02:37]} 17. Qf3 {[%clk 0:02:40]}  Qb5 {[%clk 0:02:27]} 18. Ra1 {[%clk 0:02:38]}  Qb2 {[%clk 0:02:27]} 19. Rc1 {[%clk 0:02:37]}  Qxa3 {[%clk 0:02:27]} 20. Ng6 {[%clk 0:02:30]}  Nxg6 {[%clk 0:02:23]} 21. hxg6 {[%clk 0:02:30]}  fxg6 {[%clk 0:02:24]} 22. Qg4 {[%clk 0:02:20]}  Rxf4 {[%clk 0:02:23]} 23. Qxf4 {[%clk 0:02:16]}  Qe7 {[%clk 0:02:21]} 24. Qg4 {[%clk 0:02:13]}  Qf7 {[%clk 0:02:21]} 25. Rb1 {[%clk 0:02:04]}  Kd8 {[%clk 0:02:19]} 26. Be2 {[%clk 0:01:59]}  Kc7 {[%clk 0:02:19]} 27. Bf3 {[%clk 0:01:59]}  a5 {[%clk 0:02:18]} 28. Ke2 {[%clk 0:01:56]}  a4 {[%clk 0:02:19]} 29. Qh3 {[%clk 0:01:54]}  a3 {[%clk 0:02:17]} 30. Ra1 {[%clk 0:01:51]}  Qf5 {[%clk 0:02:16]} 31. Qh1 {[%clk 0:01:48]}  Qxc2 {[%clk 0:02:15]} 32. Qb1 {[%clk 0:01:42]}  Qxb1 {[%clk 0:02:09]} 33. Rxb1 {[%clk 0:01:42]}  Na5 {[%clk 0:02:09]} 34. Ra1 {[%clk 0:01:38]}  Nb3 {[%clk 0:02:09]} 35. Ra2 {[%clk 0:01:38]}  Be8 {[%clk 0:02:00]} 36. Kd1 {[%clk 0:01:27]}  g5 {[%clk 0:01:56]} 37. Bc1 {[%clk 0:01:27]}  Nxc1 {[%clk 0:01:48]} 38. Kxc1 {[%clk 0:01:28]}  Bg6 {[%clk 0:01:48]} 39. Bd1 {[%clk 0:01:21]}  Kc6 {[%clk 0:01:48]} 40. f3 {[%clk 0:01:12]}  b5 {[%clk 0:01:48]} 41. Bc2 {[%clk 0:01:10]}  Bxc2 {[%clk 0:01:44]} 42. Kxc2 {[%clk 0:01:11]}  b4 {[%clk 0:01:45]} 43. cxb4 {[%clk 0:01:11]}  Kb5 {[%clk 0:01:46]} 44. Kc3 {[%clk 0:01:11]}  h5 {[%clk 0:01:46]} 45. g3 {[%clk 0:00:53]}  g6 {[%clk 0:01:46]} 46. Kc2 {[%clk 0:00:38]}  Kxb4 {[%clk 0:01:47]} 47. Kb1 {[%clk 0:00:38]}  Kb3 {[%clk 0:01:47]} 48. f4 {[%clk 0:00:30]}  c3 {[%clk 0:01:45]} 49. fxg5 {[%clk 0:00:27]}  c2+ {[%clk 0:01:44]} 50. Ka1 {[%clk 0:00:26]}  c1=Q# {[%clk 0:01:43]} 0-1


[Site "https://www.chess.com"]

[Event "Titled Tuesday Blitz May 23 Early 2023"]
[White "Skliarov, Viktor"]
[Black "KorolDimitriy75"]
[WhiteFideId "14106736"]
[WhiteElo "2317"]
[BlackElo "2455"]
[Result "1-0"]
[Round "04"]
[TimeControl "180+2"]
[Date "2023.05.23"]
[WhiteClock "0:00:27"]
[BlackClock "0:00:00"]

1. e4 {[%clk 0:03:00]}  c5 {[%clk 0:02:59]} 2. Nf3 {[%clk 0:02:58]}  d6 {[%clk 0:02:59]} 3. d4 {[%clk 0:02:58]}  cxd4 {[%clk 0:03:00]} 4. Qxd4 {[%clk 0:02:55]}  a6 {[%clk 0:02:59]} 5. Be3 {[%clk 0:02:55]}  Nc6 {[%clk 0:02:59]} 6. Qd2 {[%clk 0:02:55]}  g6 {[%clk 0:02:56]} 7. Nc3 {[%clk 0:02:56]}  Bg7 {[%clk 0:02:55]} 8. O-O-O {[%clk 0:02:54]}  Nf6 {[%clk 0:02:43]} 9. e5 {[%clk 0:02:54]}  dxe5 {[%clk 0:02:34]} 10. Qxd8+ {[%clk 0:02:53]}  Nxd8 {[%clk 0:02:34]} 11. Nxe5 {[%clk 0:02:54]}  O-O {[%clk 0:02:30]} 12. Na4 {[%clk 0:02:54]}  Be6 {[%clk 0:01:50]} 13. Nb6 {[%clk 0:02:50]}  Rb8 {[%clk 0:01:50]} 14. Be2 {[%clk 0:02:44]}  Nc6 {[%clk 0:01:45]} 15. Ned7 {[%clk 0:02:42]}  Nxd7 {[%clk 0:01:41]} 16. Nxd7 {[%clk 0:02:43]}  Bxd7 {[%clk 0:01:39]} 17. Rxd7 {[%clk 0:02:44]}  Rfd8 {[%clk 0:01:28]} 18. Rhd1 {[%clk 0:02:43]}  Rxd7 {[%clk 0:01:16]} 19. Rxd7 {[%clk 0:02:44]}  Kf8 {[%clk 0:01:14]} 20. c3 {[%clk 0:02:08]}  Ke8 {[%clk 0:01:11]} 21. Rd1 {[%clk 0:02:08]}  Rd8 {[%clk 0:01:04]} 22. Bb6 {[%clk 0:02:07]}  Rxd1+ {[%clk 0:01:03]} 23. Bxd1 {[%clk 0:02:08]}  Kd7 {[%clk 0:01:01]} 24. Bf3 {[%clk 0:02:06]}  f5 {[%clk 0:00:54]} 25. Kc2 {[%clk 0:01:46]}  e5 {[%clk 0:00:53]} 26. b4 {[%clk 0:01:41]}  e4 {[%clk 0:00:51]} 27. Be2 {[%clk 0:01:41]}  Be5 {[%clk 0:00:36]} 28. g3 {[%clk 0:01:41]}  Bc7 {[%clk 0:00:34]} 29. Be3 {[%clk 0:01:41]}  h5 {[%clk 0:00:24]} 30. h4 {[%clk 0:01:33]}  Ne5 {[%clk 0:00:24]} 31. a4 {[%clk 0:01:30]}  Ng4 {[%clk 0:00:22]} 32. Bxg4 {[%clk 0:01:25]}  hxg4 {[%clk 0:00:23]} 33. c4 {[%clk 0:01:07]}  Be5 {[%clk 0:00:20]} 34. Kb3 {[%clk 0:01:04]}  Kc6 {[%clk 0:00:16]} 35. b5+ {[%clk 0:01:01]}  Kd6 {[%clk 0:00:15]} 36. Kb4 {[%clk 0:00:52]}  Bb2 {[%clk 0:00:08]} 37. c5+ {[%clk 0:00:46]}  Kd7 {[%clk 0:00:05]} 38. c6+ {[%clk 0:00:42]}  Kc7 {[%clk 0:00:04]} 39. cxb7 {[%clk 0:00:32]}  Kxb7 {[%clk 0:00:04]} 40. Kc4 {[%clk 0:00:33]}  axb5+ {[%clk 0:00:03]} 41. axb5 {[%clk 0:00:33]}  Kc7 {[%clk 0:00:03]} 42. Kd5 {[%clk 0:00:33]}  Kd7 {[%clk 0:00:03]} 43. b6 {[%clk 0:00:27]}  Ba3 {[%clk 0:00:00]} 44. Bf4 {[%clk 0:00:27]} 1-0


[Site "https://www.chess.com"]

[Event "Titled Tuesday Blitz May 23 Early 2023"]
[White "Rangel, Daniel"]
[Black "Lewicki, Miroslaw"]
[WhiteFideId "2124475"]
[BlackFideId "1113380"]
[WhiteElo "2256"]
[BlackElo "2212"]
[Result "0-1"]
[Round "04"]
[TimeControl "180+2"]
[Date "2023.05.23"]
[WhiteClock "0:00:01"]
[BlackClock "0:01:26"]

1. d4 {[%clk 0:02:58]}  g6 {[%clk 0:03:00]} 2. c4 {[%clk 0:02:58]}  Bg7 {[%clk 0:03:00]} 3. Nc3 {[%clk 0:02:59]}  Nf6 {[%clk 0:03:01]} 4. e4 {[%clk 0:03:00]}  d6 {[%clk 0:03:01]} 5. Nf3 {[%clk 0:03:00]}  O-O {[%clk 0:03:01]} 6. Be2 {[%clk 0:03:00]}  b6 {[%clk 0:03:02]} 7. O-O {[%clk 0:03:00]}  Bb7 {[%clk 0:03:03]} 8. d5 {[%clk 0:02:58]}  Nbd7 {[%clk 0:03:02]} 9. Nd4 {[%clk 0:02:57]}  Re8 {[%clk 0:02:53]} 10. b4 {[%clk 0:02:41]}  e5 {[%clk 0:02:43]} 11. Nc6 {[%clk 0:02:39]}  Bxc6 {[%clk 0:02:43]} 12. dxc6 {[%clk 0:02:40]}  Nf8 {[%clk 0:02:44]} 13. Nd5 {[%clk 0:02:28]}  Nxe4 {[%clk 0:02:44]} 14. Bb2 {[%clk 0:02:23]}  Ne6 {[%clk 0:02:42]} 15. Qc2 {[%clk 0:02:18]}  f5 {[%clk 0:02:42]} 16. f3 {[%clk 0:02:08]}  Nf6 {[%clk 0:02:42]} 17. Rae1 {[%clk 0:02:08]}  a5 {[%clk 0:02:35]} 18. b5 {[%clk 0:02:04]}  Nc5 {[%clk 0:02:30]} 19. g4 {[%clk 0:01:58]}  Nxd5 {[%clk 0:02:20]} 20. cxd5 {[%clk 0:01:59]}  e4 {[%clk 0:02:09]} 21. gxf5 {[%clk 0:01:52]}  Bxb2 {[%clk 0:02:09]} 22. Qxb2 {[%clk 0:01:53]}  Qg5+ {[%clk 0:02:08]} 23. Kh1 {[%clk 0:01:52]}  Qxf5 {[%clk 0:02:01]} 24. fxe4 {[%clk 0:01:29]}  Qxe4+ {[%clk 0:02:01]} 25. Bf3 {[%clk 0:01:30]}  Qxe1 {[%clk 0:02:01]} 26. Rxe1 {[%clk 0:01:31]}  Rxe1+ {[%clk 0:02:01]} 27. Kg2 {[%clk 0:01:31]}  Rf8 {[%clk 0:02:01]} 28. Qd2 {[%clk 0:01:20]}  Re5 {[%clk 0:01:58]} 29. Qd1 {[%clk 0:01:05]}  Ref5 {[%clk 0:01:50]} 30. Bg4 {[%clk 0:01:05]}  Rf2+ {[%clk 0:01:50]} 31. Kh3 {[%clk 0:01:03]}  h5 {[%clk 0:01:45]} 32. Be6+ {[%clk 0:01:01]}  Kh7 {[%clk 0:01:42]} 33. Qa1 {[%clk 0:00:29]}  Ne4 {[%clk 0:01:32]} 34. Qg1 {[%clk 0:00:10]}  R8f3+ {[%clk 0:01:30]} 35. Kh4 {[%clk 0:00:08]}  Kh6 {[%clk 0:01:26]} 36. Qc1+ {[%clk 0:00:06]}  g5+ {[%clk 0:01:26]} 37. Qxg5+ {[%clk 0:00:05]}  Nxg5 {[%clk 0:01:26]} 38. Bg8 {[%clk 0:00:01]}  Rxh2# {[%clk 0:01:26]} 0-1


[Site "https://www.chess.com"]

[Event "Titled Tuesday Blitz May 23 Early 2023"]
[White "Rodriguez Santiago, Jaime"]
[Black "Kleiman, Jake"]
[WhiteFideId "3100898"]
[BlackFideId "2020041"]
[WhiteElo "2025"]
[BlackElo "2612"]
[Result "0-1"]
[Round "04"]
[TimeControl "180+2"]
[Date "2023.05.23"]
[WhiteClock "0:00:39"]
[BlackClock "0:00:41"]

1. c4 {[%clk 0:03:00]}  e6 {[%clk 0:02:57]} 2. Nf3 {[%clk 0:02:57]}  Nf6 {[%clk 0:02:57]} 3. g3 {[%clk 0:02:57]}  d5 {[%clk 0:02:57]} 4. Bg2 {[%clk 0:02:57]}  dxc4 {[%clk 0:02:58]} 5. O-O {[%clk 0:02:54]}  a6 {[%clk 0:02:54]} 6. a4 {[%clk 0:02:48]}  Nc6 {[%clk 0:02:54]} 7. Na3 {[%clk 0:02:48]}  Bxa3 {[%clk 0:02:53]} 8. Rxa3 {[%clk 0:02:48]}  e5 {[%clk 0:02:54]} 9. d3 {[%clk 0:02:45]}  cxd3 {[%clk 0:02:44]} 10. Rxd3 {[%clk 0:02:45]}  Qe7 {[%clk 0:02:45]} 11. Rc3 {[%clk 0:02:38]}  O-O {[%clk 0:02:40]} 12. Qc2 {[%clk 0:02:22]}  Be6 {[%clk 0:02:15]} 13. Rxc6 {[%clk 0:02:18]}  bxc6 {[%clk 0:02:16]} 14. Nxe5 {[%clk 0:02:18]}  Bd5 {[%clk 0:02:12]} 15. Nxc6 {[%clk 0:02:11]}  Qe6 {[%clk 0:01:37]} 16. Bxd5 {[%clk 0:01:58]}  Nxd5 {[%clk 0:01:37]} 17. Qc4 {[%clk 0:01:57]}  Rfe8 {[%clk 0:01:28]} 18. Nd4 {[%clk 0:01:36]}  Qe5 {[%clk 0:01:14]} 19. e3 {[%clk 0:01:30]}  h5 {[%clk 0:01:07]} 20. h4 {[%clk 0:01:24]}  Nf6 {[%clk 0:01:04]} 21. b3 {[%clk 0:01:16]}  Ne4 {[%clk 0:00:55]} 22. Kg2 {[%clk 0:01:03]}  c5 {[%clk 0:00:50]} 23. Nf3 {[%clk 0:01:00]}  Qe6 {[%clk 0:00:48]} 24. Qxe6 {[%clk 0:00:50]}  Rxe6 {[%clk 0:00:49]} 25. Ba3 {[%clk 0:00:47]}  Rb8 {[%clk 0:00:46]} 26. Rc1 {[%clk 0:00:39]}  Rxb3 {[%clk 0:00:41]} 0-1


[Site "https://www.chess.com"]

[Event "Titled Tuesday Blitz May 23 Early 2023"]
[White "Szabo, Marcell"]
[Black "Smith, Shreyas"]
[WhiteFideId "2072033"]
[BlackFideId "7400713"]
[WhiteElo "1795"]
[BlackElo "2151"]
[Result "0-1"]
[Round "04"]
[TimeControl "180+2"]
[Date "2023.05.23"]
[WhiteClock "0:00:27"]
[BlackClock "0:00:09"]

1. e4 {[%clk 0:03:00]}  c5 {[%clk 0:02:59]} 2. Nf3 {[%clk 0:03:01]}  Nc6 {[%clk 0:03:00]} 3. b4 {[%clk 0:03:01]}  Nxb4 {[%clk 0:02:55]} 4. c3 {[%clk 0:03:01]}  Nc6 {[%clk 0:02:51]} 5. d4 {[%clk 0:03:01]}  cxd4 {[%clk 0:02:50]} 6. cxd4 {[%clk 0:03:02]}  g6 {[%clk 0:02:50]} 7. Bc4 {[%clk 0:02:54]}  Bg7 {[%clk 0:02:49]} 8. O-O {[%clk 0:02:53]}  d6 {[%clk 0:02:13]} 9. h3 {[%clk 0:02:42]}  Nf6 {[%clk 0:02:05]} 10. Nc3 {[%clk 0:02:37]}  O-O {[%clk 0:01:56]} 11. Rb1 {[%clk 0:02:34]}  Bd7 {[%clk 0:01:44]} 12. Re1 {[%clk 0:02:22]}  Rc8 {[%clk 0:01:40]} 13. Bb3 {[%clk 0:02:20]}  e5 {[%clk 0:01:34]} 14. Nb5 {[%clk 0:02:12]}  Be8 {[%clk 0:01:18]} 15. Ba3 {[%clk 0:01:58]}  Nxd4 {[%clk 0:00:58]} 16. Nfxd4 {[%clk 0:01:53]}  exd4 {[%clk 0:00:57]} 17. Bxd6 {[%clk 0:01:49]}  Bxb5 {[%clk 0:00:56]} 18. Bxf8 {[%clk 0:01:48]}  Qxf8 {[%clk 0:00:56]} 19. e5 {[%clk 0:01:48]}  Nh5 {[%clk 0:00:44]} 20. Qxd4 {[%clk 0:01:46]}  Bc6 {[%clk 0:00:43]} 21. Qxa7 {[%clk 0:01:36]}  Nf4 {[%clk 0:00:41]} 22. f3 {[%clk 0:01:35]}  Qe7 {[%clk 0:00:38]} 23. e6 {[%clk 0:01:22]}  fxe6 {[%clk 0:00:22]} 24. Qf2 {[%clk 0:01:16]}  Qg5 {[%clk 0:00:20]} 25. Bxe6+ {[%clk 0:01:12]}  Nxe6 {[%clk 0:00:18]} 26. Rxe6 {[%clk 0:01:13]}  Qf5 {[%clk 0:00:18]} 27. Rbe1 {[%clk 0:01:11]}  h5 {[%clk 0:00:17]} 28. Qg3 {[%clk 0:01:03]}  Kh7 {[%clk 0:00:16]} 29. Re7 {[%clk 0:01:01]}  Kh6 {[%clk 0:00:15]} 30. h4 {[%clk 0:01:00]}  Bf6 {[%clk 0:00:14]} 31. R7e6 {[%clk 0:00:52]}  Rd8 {[%clk 0:00:14]} 32. Kh1 {[%clk 0:00:40]}  Rd4 {[%clk 0:00:14]} 33. R6e4 {[%clk 0:00:17]}  Bxe4 {[%clk 0:00:13]} 34. fxe4 {[%clk 0:00:16]}  Rxe4 {[%clk 0:00:12]} 35. Rxe4 {[%clk 0:00:16]}  Qxe4 {[%clk 0:00:12]} 36. Qb3 {[%clk 0:00:17]}  Qe1+ {[%clk 0:00:12]} 37. Kh2 {[%clk 0:00:18]}  Qxh4+ {[%clk 0:00:11]} 38. Kg1 {[%clk 0:00:19]}  Qe1+ {[%clk 0:00:11]} 39. Kh2 {[%clk 0:00:20]}  Be5+ {[%clk 0:00:10]} 40. g3 {[%clk 0:00:19]}  Qf2+ {[%clk 0:00:10]} 41. Kh3 {[%clk 0:00:19]}  Qf1+ {[%clk 0:00:09]} 42. Kh2 {[%clk 0:00:19]}  Qe2+ {[%clk 0:00:08]} 43. Kh3 {[%clk 0:00:19]}  Qg4+ {[%clk 0:00:08]} 44. Kg2 {[%clk 0:00:19]}  Qxg3+ {[%clk 0:00:07]} 45. Qxg3 {[%clk 0:00:20]}  Bxg3 {[%clk 0:00:08]} 46. Kxg3 {[%clk 0:00:19]}  g5 {[%clk 0:00:09]} 47. Kh3 {[%clk 0:00:20]}  h4 {[%clk 0:00:08]} 48. Kg4 {[%clk 0:00:20]}  b5 {[%clk 0:00:07]} 49. a4 {[%clk 0:00:21]}  bxa4 {[%clk 0:00:07]} 50. Kf5 {[%clk 0:00:21]}  a3 {[%clk 0:00:07]} 51. Kg4 {[%clk 0:00:22]}  a2 {[%clk 0:00:08]} 52. Kh3 {[%clk 0:00:23]}  a1=Q {[%clk 0:00:07]} 53. Kg4 {[%clk 0:00:24]}  Qd4+ {[%clk 0:00:07]} 54. Kf5 {[%clk 0:00:25]}  Qf4+ {[%clk 0:00:07]} 55. Ke6 {[%clk 0:00:23]}  g4 {[%clk 0:00:07]} 56. Ke7 {[%clk 0:00:22]}  g3 {[%clk 0:00:07]} 57. Ke6 {[%clk 0:00:23]}  g2 {[%clk 0:00:08]} 58. Ke7 {[%clk 0:00:24]}  g1=Q {[%clk 0:00:08]} 59. Ke6 {[%clk 0:00:25]}  Qe1+ {[%clk 0:00:08]} 60. Kd7 {[%clk 0:00:24]}  Qfd2+ {[%clk 0:00:09]} 61. Kc8 {[%clk 0:00:25]}  Qec1+ {[%clk 0:00:09]} 62. Kb7 {[%clk 0:00:26]}  Qdb2+ {[%clk 0:00:09]} 63. Ka8 {[%clk 0:00:27]}  Qca1# {[%clk 0:00:09]} 0-1


[Site "https://www.chess.com"]